fUSD/lending_fUSD_20260108
["ID","MTS","AMOUNT","RATE_DAILY","PERIOD"]
[401031445,1767889847448,-150.0,0.00017973,2]
[401031447,1767889847457,-151.0,0.00017977,2]
[401031449,1767889847466,-968.33,0.00017979,2]
[401031451,1767889847475,-968.33,0.00017979,2]
[401031453,1767889847486,-500.0,0.00017979,2]
[401031455,1767889847495,-577.6208976,0.00017979,2]
[401031457,1767889847505,-418.69539905,0.00017979,2]
[401031458,1767889847514,-600713.9939341,0.0001798,2]
[401031460,1767889847523,-138626.3062925,0.0001798,2]
[401031462,1767889847533,-151.0,0.0001798,2]
[401031464,1767889847542,-151.0,0.0001798,2]
[401031466,1767889847551,-167.184503,0.0001798,2]
[401031468,1767889847560,-151.0,0.0001798,2]
[401031470,1767889847570,-213.608831,0.0001798,2]
[401031472,1767889847579,-213.608831,0.0001798,2]
[401031474,1767889847588,-213.608831,0.0001798,2]
[401031476,1767889847598,-213.608831,0.0001798,2]
[401031478,1767889847607,-151.0,0.0001798,2]
[401031479,1767889847618,-151.0,0.0001798,2]
[401031481,1767889847629,-151.0,0.0001798,2]
[401031483,1767889847640,-151.0,0.0001798,2]
[401031485,1767889847649,-151.0,0.0001798,2]
[401031487,1767889847659,-196.054169,0.0001798,2]
[401031489,1767889847669,-151.0,0.0001798,2]
[401031491,1767889847679,-196.054169,0.0001798,2]
[401031493,1767889847689,-151.0,0.0001798,2]
[401031495,1767889847700,-196.054169,0.0001798,2]
[401031497,1767889847709,-196.054169,0.0001798,2]
[401031499,1767889847719,-151.0,0.0001798,2]
[401031501,1767889847728,-374.563037,0.0001798,2]
[401031503,1767889847739,-374.563037,0.0001798,2]
[401031505,1767889847749,-374.563037,0.0001798,2]
[401031507,1767889847759,-374.563037,0.0001798,2]
[401031509,1767889847768,-151.0,0.0001798,2]
[401031511,1767889847777,-500.0,0.00017982,2]
[401031513,1767889847787,-3421.9101777,0.00017984,2]
[401031514,1767889847796,-246.66180949,0.0001799,2]
[401031516,1767889847805,-246.66180949,0.0001799,2]
[401031518,1767889847816,-784.0,0.00017997,2]
[401031520,1767889847825,-151.0,0.00017997,2]
[401031522,1767889847834,-150.0,0.00017999,2]
[401031524,1767889847843,-500.0,0.00017999,2]
[401031526,1767889847853,-500.0,0.00017999,2]
[401031528,1767889847862,-500.0,0.00017999,2]
[401031530,1767889847872,-500.0,0.00017999,2]
[401031532,1767889847881,-500.0,0.00017999,2]
[401031534,1767889847890,-500.0,0.00017999,2]
[401031536,1767889847899,-500.0,0.00017999,2]
[401031537,1767889847909,-500.0,0.00017999,2]
[401031539,1767889847919,-596.87027646,0.00017999,2]
[401031541,1767889847928,-500.0,0.00017999,2]
[401031543,1767889847938,-500.0,0.00017999,2]
[401031546,1767889847948,-446.86331983,0.00017999,2]
[401031548,1767889847958,-500.0,0.00017999,2]
[401031549,1767889847970,-500.0,0.00017999,2]
[401031551,1767889847979,-500.0,0.00017999,2]
[401031553,1767889847991,-500.0,0.00017999,2]
[401031555,1767889848001,-500.0,0.00017999,2]
[401031557,1767889848011,-500.0,0.00017999,2]
[401031559,1767889848021,-500.0,0.00017999,2]
[401031561,1767889848030,-500.0,0.00017999,2]
[401031563,1767889848039,-500.0,0.00017999,2]
[401031565,1767889848049,-500.0,0.00017999,2]
[401031567,1767889848058,-512.68399457,0.00017999,2]
[401031568,1767889848067,-300.0,0.00017999,2]
[401031570,1767889848077,-300.0,0.00017999,2]
[401031572,1767889848086,-666.0,0.00017999,2]
[401031574,1767889848095,-968.33,0.00017999,2]
[401031576,1767889848105,-968.33,0.00017999,2]
[401031578,1767889848114,-968.33,0.00017999,2]
[401031580,1767889848124,-968.33,0.00017999,2]
[401031582,1767889848133,-968.33,0.00017999,2]
[401031584,1767889848143,-968.33,0.00017999,2]
[401031586,1767889848153,-968.33,0.00017999,2]
[401031588,1767889848163,-968.33,0.00017999,2]
[401031590,1767889848173,-968.33,0.00017999,2]
[401031592,1767889848182,-968.33,0.00017999,2]
[401031594,1767889848191,-968.33,0.00017999,2]
[401031596,1767889848200,-968.33,0.00017999,2]
[401031598,1767889848210,-968.33,0.00017999,2]
[401031600,1767889848219,-968.3877512,0.00017999,2]
[401031602,1767889848228,-300.0,0.00017999,2]
[401031603,1767889848238,-300.0,0.00017999,2]
[401031605,1767889848248,-666.0,0.00017999,2]
[401031607,1767889848257,-328.76989074,0.00017999,2]
[401031610,1767889848268,-500.0,0.00017999,2]
[401031611,1767889848277,-500.0,0.00017999,2]
[401031613,1767889848286,-500.0,0.00017999,2]
[401031615,1767889848295,-500.0,0.00017999,2]
[401031617,1767889848305,-386.45682453,0.00017999,2]
[401031619,1767889848314,-300.0,0.00017999,2]
[401031621,1767889848324,-1041.61035757,0.00017999,2]
[401031623,1767889848333,-11518.53087549,0.00017999,2]
[401031625,1767889848342,-300.0,0.00017999,2]
[401031627,1767889848352,-666.0,0.00017999,2]
[401031629,1767889848361,-500.0,0.00017999,2]
[401031631,1767889848370,-500.0,0.00017999,2]
[401031633,1767889848380,-500.0,0.00017999,2]
[401031635,1767889848389,-321.10769147,0.00017999,2]
[401031637,1767889848398,-150.0,0.00017999,2]
[401031639,1767889848407,-5970.77362135,0.00017999,2]
[401031640,1767889848415,-3602397.02613149,0.00018,2]
[401031647,1767889848476,-4247.0,0.00018,2]
[401031797,1767889850115,-207.87,0.00015097,2]
[401031799,1767889850124,-207.87,0.00015852,2]
[401031801,1767889850134,-207.87,0.00016607,2]
[401031803,1767889850144,-282.35,0.00017264,2]
[401031806,1767889850155,-1047.65,0.00017264,2]
[401031809,1767889850175,-3409.24514084,0.000179,2]
[401031811,1767889850186,-22303.34040459,0.000179,3]
[401031813,1767889850196,-201908.84615672,0.00018,2]
[401031824,1767889850290,-116.44740112,0.00018,2]
[401031830,1767889850338,-500.9835494,0.00018,2]
[401031841,1767889850434,-2265.0,0.00018,2]
[401031865,1767889850652,10000.01,0.00010397,2]
[401031870,1767889850688,10000.01,0.00010397,2]
[401031874,1767889850722,10000.01,0.00010397,2]
[401031879,1767889850760,10000.01,0.00010397,2]
[401031884,1767889850792,10000.01,0.00010397,2]
[401031888,1767889850825,10000.01,0.00010397,2]
[401031893,1767889850860,939999.94,0.00010397,2]
[401034204,1767889932952,2518.1429,0.00010397,2]
[401034205,1767889936882,236.5514,0.00010397,2]
[401034209,1767889955500,500.0,0.00010396,2]
[401034212,1767889965624,250.75360296,0.00010396,2]
[401034213,1767889976676,6494.56209704,0.00010397,2]
[401034214,1767889976709,10000.01,0.00010397,2]
[401034215,1767889976742,10000.01,0.00010397,2]
[401034216,1767889976775,10000.01,0.00010397,2]
[401034217,1767889976808,10000.01,0.00010397,2]
[401034218,1767889976840,10000.01,0.00010397,2]
[401034219,1767889976870,943505.38790296,0.00010397,2]
[401034220,1767889987622,907.99108783,0.00010396,2]
[401034221,1767890048276,4002.505237,7.945e-05,2]
[401034222,1767890110625,161.2772,0.00010396,2]
[401034228,1767890589157,-471.22399368,0.00043564,120]
[401034229,1767890589190,-382.47851501,0.00043564,91]
[401034230,1767890589220,-309.68707044,0.00043564,30]
[401034231,1767890589251,-276.70451976,0.00043564,120]
[401034232,1767890589282,-176.10654134,0.00043564,120]
[401034233,1767890589313,-329.9204421,0.00043564,120]
[401034234,1767890589343,-162.53881934,0.00043564,120]
[401034235,1767890589374,-311.03143386,0.00043564,120]
[401034236,1767890589402,-389.59800017,0.00043564,120]
[401034237,1767890589431,-181.64139721,0.00043564,120]
[401034238,1767890589461,-193.83809382,0.00043564,30]
[401034239,1767890589490,-366.68503561,0.00043564,90]
[401034240,1767890589521,-229.10660779,0.00043564,120]
[401034241,1767890589550,-280.09644419,0.00043564,120]
[401034242,1767890589579,-373.4750762,0.00043564,60]
[401034243,1767890589613,-225.94437517,0.00043564,120]
[401034244,1767890589645,-221.08053156,0.00043564,30]
[401034245,1767890589672,-483.56145832,0.00043564,60]
[401034246,1767890589700,-269.48793277,0.00043564,120]
[401034247,1767890589727,-192.67354379,0.00043564,120]
[401034248,1767890589753,-260.37674354,0.00043564,120]
[401034249,1767890589781,-194.69593894,0.00043564,30]
[401034250,1767890589816,-441.08774053,0.00043564,120]
[401034251,1767890589844,-323.69189482,0.00043564,30]
[401034252,1767890589875,-329.35004015,0.00043564,120]
[401034253,1767890589903,-490.12831079,0.00043564,30]
[401034254,1767890589932,-247.92589254,0.00043564,120]
[401034255,1767890590227,-175.1756788,0.00043564,120]
[401034256,1767890590257,-309.72864015,0.00043564,120]
[401034257,1767890590287,-176.34425033,0.00043564,120]
[401034258,1767890590317,-265.44358046,0.00043564,30]
[401034259,1767890590346,-270.30424556,0.00043564,120]
[401034260,1767890590377,-172.52019675,0.00043564,30]
[401034261,1767890590409,-468.03574189,0.00043564,120]
[401034262,1767890590439,-264.74591437,0.00043564,120]
[401034263,1767890590468,-414.18704262,0.00043564,120]
[401034264,1767890590496,-216.30578162,0.00043564,30]
[401034265,1767890590528,-239.76814702,0.00043564,120]
[401034266,1767890590558,-257.15670272,0.00043564,120]
[401034267,1767890590587,-180.0,0.00043564,30]
[401034268,1767890590620,-180.0,0.00043564,120]
[401034269,1767890590652,-267.42660637,0.00043564,120]
[401034270,1767890590682,-437.41089391,0.00043564,120]
[401034271,1767890590712,-362.38675621,0.00043564,120]
[401034272,1767890590742,-238.85221481,0.00043564,120]
[401034273,1767890590770,-152.2647983,0.00043564,30]
[401034274,1767890590797,-283.72264229,0.00043564,30]
[401034275,1767890590823,-302.13485611,0.00043564,120]
[401034276,1767890590849,-414.23887916,0.00043564,120]
[401034277,1767890590878,-216.51583823,0.00043564,31]
[401034278,1767890590917,-241.24272396,0.00043564,120]
[401034279,1767890590947,-434.64644844,0.00043564,30]
[401034280,1767890590976,-180.71503947,0.00043564,120]
[401034281,1767890591007,-261.92634699,0.00043564,120]
[401034282,1767890591034,-294.13464643,0.00043564,30]
[401034283,1767890591061,-196.8622725,0.00043564,120]
[401034284,1767890591089,-274.66579358,0.00043564,120]
[401034285,1767890591121,-482.34377298,0.00043564,60]
[401034286,1767890591150,-334.32804541,0.00043564,120]
[401034287,1767890591176,-292.21535368,0.00043564,120]
[401034288,1767890591205,-160.39758932,0.00043564,120]
[401034289,1767890591233,-306.2121534,0.00043564,120]
[401034290,1767890591264,-1974.84583269,0.00043564,120]
[401034291,1767890591293,-2000.0,0.00043564,31]
[401034292,1767890591320,-694.26992759,0.00043564,120]
[401034293,1767890591353,-1555.64521052,0.00043564,60]
[401034294,1767890591386,-445.999999,0.00043564,30]
[401034295,1767890591414,-1000.0,0.00043564,30]
[401034296,1767890591443,-3221.86,0.00043564,120]
[401034297,1767890591473,-703.0,0.00043564,120]
[401034298,1767890591501,-11320.05484078,0.00043564,30]
[401034299,1767890591533,-1325.36330164,0.00043564,90]
[401034300,1767890591561,-999.999997,0.00043564,120]
[401034301,1767890591591,-961.66482064,0.00043564,120]
[401034302,1767890591623,-3012.56681481,0.00043564,60]
[401034303,1767890591653,-461.21011986,0.00043564,120]
[401034304,1767890591682,-443.90224256,0.00043564,120]
[401034305,1767890591709,-1487.63719308,0.00043564,120]
[401034306,1767890591736,-1617.45709576,0.00043564,30]
[401034307,1767890591763,-4812.96914463,0.00043564,120]
[401034308,1767890591790,-480.42971458,0.00043564,120]
[401034309,1767890591819,-1861.52674993,0.00043564,120]
[401034310,1767890591846,-618.11499744,0.00043564,120]
[401034311,1767890591874,-574.02674134,0.00043564,120]
[401034312,1767890591902,-776.22790222,0.00043564,120]
[401034313,1767890591930,-1367.8051038,0.00043564,60]
[401034314,1767890591958,-275.0,0.00043564,120]
[401034315,1767890591984,-717.23817424,0.00043564,120]
[401034316,1767890592011,-1017.99938054,0.00043564,120]
[401034317,1767890592038,-720.46334272,0.00043564,120]
[401034318,1767890592068,-897.7182321,0.00043564,120]
[401034319,1767890592099,-2567.54052081,0.00043564,120]
[401034320,1767890592128,-1443.20976836,0.00043564,33]
[401034321,1767890592155,-673.25496462,0.00043564,120]
[401034322,1767890592182,-3234.03447256,0.00043564,120]
[401034323,1767890592210,-1164.41236232,0.00043564,120]
[401034324,1767890592238,-2381.08213494,0.00043564,30]
[401034325,1767890592267,-632.52819242,0.00043564,120]
[401034326,1767890592298,-516.2395293,0.00043564,120]
[401034327,1767890592327,-971.0366688,0.00043564,120]
[401034328,1767890592356,-644.95585782,0.00043564,120]
[401034329,1767890592386,-3171.17586949,0.00043564,30]
[401034330,1767890592415,-1446.4174867,0.00043564,30]
[401034331,1767890592444,-943.52743745,0.00043564,120]
[401034332,1767890592473,-516.67064262,0.00043564,120]
[401034333,1767890592503,-1053.76830429,0.00043564,120]
[401034334,1767890592532,-5256.25203006,0.00043564,120]
[401034335,1767890592562,-1780.4872465,0.00043564,120]
[401034336,1767890592591,-1000.0,0.00043564,120]
[401034337,1767890592621,-1100.0,0.00043564,120]
[401034338,1767890592650,-1000.0,0.00043564,120]
[401034339,1767890592680,-6224.08316342,0.00043564,120]
[401034340,1767890592710,-10879.83466991,0.00043564,120]
[401034341,1767890592746,-103925.2569115,0.00043564,120]
[401034342,1767890592776,-11779.56171836,0.00043564,120]
[401034343,1767890592804,-23441.78781686,0.00043564,120]
[401034344,1767890593266,-31000.0,0.00043564,120]
[401034345,1767890593298,-188.0,0.00043564,30]
[401034346,1767890593327,-186.0,0.00043564,30]
[401034347,1767890593359,-186.0,0.00043564,120]
[401034348,1767890593392,-760.38783724,0.00043564,30]
[401034349,1767890593421,-181.01,0.00043564,30]
[401034350,1767890593450,-542.33075888,0.00043564,30]
[401034351,1767890593478,-405.49748258,0.00043564,30]
[401034352,1767890593506,-930.0868273,0.00043564,30]
[401034353,1767890593533,-784.6947266,0.00043564,30]
[401034354,1767890593561,-1260.96127732,0.00043564,30]
[401034355,1767890593588,-1623.69833874,0.00043564,30]
[401034356,1767890593621,-910.8089979,0.00043564,30]
[401034357,1767890593649,-461.38405354,0.00043564,30]
[401034358,1767890593679,-919.70983041,0.00043564,30]
[401034359,1767890593707,-672.49946783,0.00043564,30]
[401034360,1767890593732,-990.65798746,0.00043564,30]
[401034361,1767890593758,-1023.72841094,0.00043564,30]
[401034362,1767890593784,-374.02941352,0.00043564,30]
[401034363,1767890593815,-1077.59606554,0.00043564,30]
[401034364,1767890593842,-997.0,0.00043564,30]
[401034365,1767890593875,-941.00744893,0.00043564,30]
[401034366,1767890593906,-367.79957024,0.00043564,30]
[401034367,1767890593933,-510.32179826,0.00043564,30]
[401034368,1767890593962,-7589.64079054,0.00043564,60]
[401034369,1767890593990,-909.71102502,0.00043564,30]
[401034370,1767890594018,-1104.12222675,0.00043564,30]
[401034371,1767890594047,-494.23324276,0.00043564,30]
[401034372,1767890594077,-1097.73020076,0.00043564,120]
[401034373,1767890594106,-836.90526361,0.00043564,30]
[401034374,1767890594136,-681.75840438,0.00043564,30]
[401034375,1767890594164,-500.0,0.00043564,120]
[401034376,1767890594192,-500.0,0.00043564,120]
[401034377,1767890594220,-500.0,0.00043564,120]
[401034378,1767890594249,-500.0,0.00043564,120]
[401034379,1767890594278,-500.0,0.00043564,120]
[401034380,1767890594315,-500.0,0.00043564,120]
[401034381,1767890594349,-500.0,0.00043564,120]
[401034382,1767890594378,-500.0,0.00043564,120]
[401034383,1767890594408,-500.0,0.00043564,120]
[401034384,1767890594437,-500.0,0.00043564,120]
[401034385,1767890594466,-500.0,0.00043564,120]
[401034386,1767890594494,-500.0,0.00043564,120]
[401034387,1767890594522,-500.0,0.00043564,120]
[401034388,1767890594552,-180.0576902,0.00043564,120]
[401034389,1767890594582,-5000.0,0.00043564,120]
[401034390,1767890594611,-5000.0,0.00043564,120]
[401034391,1767890594643,-5000.0,0.00043564,120]
[401034392,1767890594671,-5000.0,0.00043564,120]
[401034393,1767890594699,-5000.0,0.00043564,120]
[401034394,1767890594726,-5000.0,0.00043564,120]
[401034395,1767890594759,-5000.0,0.00043564,120]
[401034396,1767890594789,-5000.0,0.00043564,120]
[401034397,1767890594821,-5000.0,0.00043564,120]
[401034398,1767890594850,-600.0,0.00043564,120]
[401034399,1767890594880,-5000.0,0.00043564,120]
[401034400,1767890594910,-1500.0,0.00043564,120]
[401034401,1767890594943,-50000.0,0.00043564,30]
[401034402,1767890594976,-50000.0,0.00043564,31]
[401034403,1767890595006,-50000.0,0.00043564,32]
[401034404,1767890595036,-50000.0,0.00043564,33]
[401034405,1767890595068,-50000.0,0.00043564,34]
[401034406,1767890595101,-50000.0,0.00043564,35]
[401034407,1767890595129,-500.0,0.00043564,30]
[401034408,1767890595158,-2000.0,0.00043564,60]
[401034409,1767890595188,-1396.851433,0.00043564,120]
[401034410,1767890595217,-184.0,0.00043564,30]
[401034411,1767890595246,-281.92,0.00043564,30]
[401034412,1767890595276,-228.17158088,0.00043564,120]
[401034413,1767890595307,-322.27,0.00043564,30]
[401034414,1767890595336,-1508.46,0.00043564,120]
[401034415,1767890595366,-6435.56145548,0.00043564,120]
[401034416,1767890595396,-7093.33237137,0.00043564,120]
[401034417,1767890595426,-1000.0,0.00043564,60]
[401034418,1767890595456,-1000.0,0.00043564,60]
[401034419,1767890595485,-1000.0,0.00043564,60]
[401034420,1767890595514,-1000.0,0.00043564,30]
[401034421,1767890595542,-1000.0,0.00043564,120]
[401034422,1767890595571,-1000.0,0.00043564,60]
[401034423,1767890595600,-1000.0,0.00043564,30]
[401034424,1767890595628,-1000.0,0.00043564,60]
[401034425,1767890595657,-1000.0,0.00043564,60]
[401034426,1767890595686,-1000.0,0.00043564,30]
[401034427,1767890595715,-1000.0,0.00043564,60]
[401034428,1767890595743,-1000.0,0.00043564,60]
[401034429,1767890595770,-1000.0,0.00043564,30]
[401034430,1767890595798,-1000.0,0.00043564,30]
[401034431,1767890595828,-405.9,0.00043564,120]
[401034432,1767890595856,-18071.87,0.00043564,61]
[401034433,1767890595885,-1123.71706523,0.00043564,30]
[401034434,1767890595914,-168.24164171,0.00043564,30]
[401034435,1767890595942,-168.77828715,0.00043564,120]
[401034436,1767890595970,-855.85303944,0.00043564,30]
[401034437,1767890596249,-166.25002192,0.00043564,120]
[401034438,1767890596279,-4066.7325058,0.00043564,120]
[401034439,1767890596311,-5000.0,0.00043564,30]
[401034440,1767890596341,-246.0,0.00043564,120]
[401034441,1767890596372,-869.16406368,0.00043564,120]
[401034442,1767890596399,-622.0,0.00043564,30]
[401034443,1767890596427,-967.79572288,0.00043564,30]
[401034444,1767890596454,-532838.09460159,0.00043564,120]
[401034445,1767890596495,-302518.0,0.00043564,60]
[401034446,1767890596527,-1300.0,0.00043564,30]
[401034447,1767890596554,-267.56827,0.00043564,30]
[401034448,1767890596584,-200.0,0.00043564,30]
[401034449,1767890596612,-200.0,0.00043564,30]
[401034450,1767890596644,-200.0,0.00043564,30]
[401034451,1767890596673,-200.0,0.00043564,30]
[401034452,1767890596700,-200.0,0.00043564,30]
[401034453,1767890596727,-476.33930695,0.00043564,120]
[401034454,1767890596755,-200.0,0.00043564,30]
[401034455,1767890596781,-200.0,0.00043564,30]
[401034456,1767890596807,-200.0,0.00043564,30]
[401034457,1767890596838,-200.0,0.00043564,30]
[401034458,1767890596865,-200.0,0.00043564,30]
[401034459,1767890596894,-200.0,0.00043564,30]
[401034460,1767890596920,-200.0,0.00043564,30]
[401034461,1767890596946,-200.0,0.00043564,30]
[401034462,1767890596972,-200.0,0.00043564,30]
[401034463,1767890597000,-200.0,0.00043564,30]
[401034464,1767890597026,-200.0,0.00043564,30]
[401034465,1767890597052,-200.0,0.00043564,30]
[401034466,1767890597078,-200.0,0.00043564,30]
[401034467,1767890597104,-200.0,0.00043564,30]
[401034468,1767890597133,-200.0,0.00043564,30]
[401034469,1767890597161,-200.0,0.00043564,30]
[401034470,1767890597188,-1095.3493343,0.00043564,120]
[401034471,1767890597214,-109999.999989,0.00043564,120]
[401034472,1767890597241,-12366.66,0.00043564,30]
[401034473,1767890597268,-316.2803944,0.00043564,120]
[401034474,1767890597297,-243.51004663,0.00043564,120]
[401034475,1767890597325,-315.50445661,0.00043564,120]
[401034476,1767890597354,-1031.45449387,0.00043564,30]
[401034477,1767890597384,-1058.37197869,0.00043564,30]
[401034478,1767890597412,-389.44322229,0.00043564,120]
[401034479,1767890597443,-5189.0,0.00043564,30]
[401034480,1767890597472,-629.47583245,0.00043564,120]
[401034481,1767890597498,-519.34201986,0.00043564,120]
[401034482,1767890597524,-219310.45,0.00043564,30]
[401034483,1767890597551,-70644.33,0.00043564,30]
[401034484,1767890597578,-8260.74022983,0.00043564,120]
[401034485,1767890597607,-45328.38,0.00043564,120]
[401034486,1767890597636,-71421.799994,0.00043564,120]
[401034487,1767890597664,-1233.59,0.00043564,120]
[401034488,1767890597690,-200.0,0.00043564,30]
[401034489,1767890597717,-500.0,0.00043564,120]
[401034490,1767890597743,-500.0,0.00043564,120]
[401034491,1767890597770,-500.0,0.00043564,120]
[401034492,1767890597797,-500.0,0.00043564,120]
[401034493,1767890597825,-500.0,0.00043564,120]
[401034494,1767890597852,-500.0,0.00043564,120]
[401034495,1767890597880,-500.0,0.00043564,120]
[401034496,1767890597909,-325.93626795,0.00043564,120]
[401034497,1767890597937,-500.0,0.00043564,120]
[401034498,1767890597965,-2455.68886737,0.00043564,120]
[401034499,1767890597992,-5342.94483528,0.00043564,31]
[401034500,1767890598020,-43251.0,0.00043564,59]
[401034501,1767890598049,-111298.07865625,0.00043564,58]
[401034502,1767890598076,-658.0,0.00043564,120]
[401034503,1767890598104,-638.0,0.00043564,30]
[401034504,1767890598131,-34369.30216514,0.00043564,120]
[401034505,1767890598158,-7799.48776737,0.00043564,120]
[401034506,1767890598186,-5050.0,0.00043564,36]
[401034507,1767890598213,-897.77871621,0.00043564,120]
[401034508,1767890598239,-406042.77147591,0.00043564,30]
[401034509,1767890598267,-597402.53716949,0.00043564,30]
[401034510,1767890598296,-1650911.94094691,0.00043564,60]
[401034511,1767890615011,-370634.10754052,0.00043564,60]
[401034512,1767890615041,-500.0,0.00043564,120]
[401034513,1767890615070,-500.0,0.00043564,120]
[401034514,1767890615102,-5050.0,0.00043564,35]
[401034515,1767890615132,-2466294.789589,0.00043564,120]
[401034516,1767890615159,-151.0,0.00043564,65]
[401034517,1767890615186,-151.0,0.00043564,65]
[401034518,1767890615212,-151.0,0.00043564,65]
[401034519,1767890615239,-151.0,0.00043564,65]
[401034520,1767890615566,-151.0,0.00043564,65]
[401034521,1767890615594,-151.0,0.00043564,65]
[401034522,1767890615623,-151.0,0.00043564,65]
[401034523,1767890615652,-151.0,0.00043564,65]
[401034524,1767890615681,-151.0,0.00043564,65]
[401034525,1767890615710,-151.0,0.00043564,65]
[401034526,1767890615737,-151.0,0.00043564,65]
[401034527,1767890615765,-151.0,0.00043564,65]
[401034528,1767890615791,-215.557209,0.00043564,65]
[401034529,1767890615823,-50000.0,0.00043564,36]
[401034530,1767890615851,-50000.0,0.00043564,37]
[401034531,1767890615880,-50000.0,0.00043564,38]
[401034532,1767890615909,-50000.0,0.00043564,39]
[401034533,1767890615936,-871.64,0.00043564,120]
[401034534,1767890615963,-345000.0,0.00043564,30]
[401034535,1767890615988,-174.6159825,0.00043564,120]
[401034536,1767890616014,-13499.57943115,0.00043564,120]
[401034537,1767890616041,-10775.08052899,0.00043564,120]
[401034538,1767890616070,-20125.95371019,0.00043564,120]
[401034539,1767890616098,-3000.0,0.00043564,30]
[401034540,1767890616125,-3000.0,0.00043564,30]
[401034541,1767890616152,-154.86425695,0.00043564,60]
[401034542,1767890616177,-346.16,0.00043564,30]
[401034543,1767890616202,-27000.0,0.00043564,90]
[401034544,1767890616228,-500.0,0.00043564,120]
[401034545,1767890616253,-500.0,0.00043564,120]
[401034546,1767890616281,-500.0,0.00043564,120]
[401034547,1767890616308,-500.0,0.00043564,120]
[401034548,1767890616335,-500.0,0.00043564,120]
[401034549,1767890616361,-500.0,0.00043564,120]
[401034550,1767890616388,-500.0,0.00043564,120]
[401034551,1767890616415,-500.0,0.00043564,120]
[401034552,1767890616441,-500.0,0.00043564,120]
[401034553,1767890616468,-500.0,0.00043564,120]
[401034554,1767890616496,-374.39904555,0.00043564,120]
[401034555,1767890616523,-46043.342632,0.00043564,120]
[401034556,1767890616551,-176.0,0.00043564,30]
[401034557,1767890616578,-213.0,0.00043564,120]
[401034558,1767890616604,-3499.06073899,0.00043564,30]
[401034559,1767890616631,-229.4293112,0.00043564,120]
[401034560,1767890616659,-164690.95283259,0.00043564,120]
[401034561,1767890616684,-1882.30229813,0.00043564,30]
[401034562,1767890616709,-881.3816857,0.00043564,120]
[401034563,1767890616735,-1200.0,0.00043564,120]
[401034564,1767890616760,-1005.37917667,0.00043564,120]
[401034565,1767890616785,-398.0,0.00043564,120]
[401034566,1767890616811,-1126.49,0.00043564,60]
[401034567,1767890616839,-755.91,0.00043564,120]
[401034568,1767890616865,-460.5674453,0.00043564,120]
[401034569,1767890616892,-1012.0,0.00043564,30]
[401034570,1767890616919,-23165.0,0.00043564,60]
[401034571,1767890616946,-2027.0,0.00043564,120]
[401034572,1767890616972,-158.21701997,0.00043564,60]
[401034573,1767890617000,-9515.44315234,0.00043564,120]
[401034574,1767890617028,-225.0,0.00043564,120]
[401034575,1767890617056,-1545.636913,0.00043564,120]
[401034576,1767890617083,-429.01495395,0.00043564,120]
[401034577,1767890617109,-531.6655769,0.00043564,120]
[401034578,1767890617135,-500.0,0.00043564,120]
[401034579,1767890617163,-500.0,0.00043564,120]
[401034580,1767890617190,-500.0,0.00043564,120]
[401034581,1767890617216,-500.0,0.00043564,120]
[401034582,1767890617242,-500.0,0.00043564,120]
[401034583,1767890617269,-500.0,0.00043564,120]
[401034584,1767890617297,-500.0,0.00043564,120]
[401034585,1767890617324,-500.0,0.00043564,120]
[401034586,1767890617351,-612.35337623,0.00043564,120]
[401034587,1767890617379,-48723.0,0.00043564,90]
[401034588,1767890617408,-29373.48233829,0.00043564,120]
[401034589,1767890617436,-339.35,0.00043564,120]
[401034590,1767890617465,-13634.99922509,0.00043564,60]
[401034591,1767890617492,-6562.899183,0.00043564,75]
[401034592,1767890617518,-150.0,0.00043564,30]